[Event "Croatian 1A League 2022"]
[Site "Porec"]
[Date "2022.09.25"]
[Round "2.18"]
[White "Cotic, Borna"]
[Black "Mihalic, Goran"]
[Result "1/2-1/2"]
[ECO "B44"]
[WhiteElo "2133"]
[BlackElo "2023"]
[Annotator "TA"]
[PlyCount "96"]
[EventDate "2022.09.24"]
[EventType "team-tourn"]
[EventCountry "CRO"]
[SourceTitle "playchess.com"]
[Source "ChessBase"]
[SourceQuality "1"]
[TimeControl "40/5400+30:1800+30"]

{[%evp 9,96,4,11,14,18,0,62,56,56,58,62,52,63,65,61,62,70,58,59,52,47,59,62,37,58,37,49,38,25,26,78,80,69,58,101,104,98,102,152,0,0,-42,-41,-49,-43,-49,-49,-50,-16,-52,-35,-64,0,-44,-43,-45,0,0,0,0,0,0,0,0,0,0,0,0,0,-18,0,0,0,0,0,0,0,0,0,0,0,0,0,0,0,0,0,0,0]} 1. e4 {[%emt 0:01:56]} c5 {[%emt 0:00:15]} 2. Nf3 {[%emt 0:00:03]} e6 {[%emt 0:00:13]} 3. c4 {[%emt 0:00:04]} Nc6 {[%emt 0:01:36]} 4. d4 {[%emt 0:00:14]} cxd4 {[%emt 0:04:37]} 5. Nxd4 {[%emt 0:00:02]} Bc5 {[%emt 0:03:20]} 6. Nb3 {[%emt 0:00:18] B44: Sicilian: Taimanov: 5 Nb5.} Bb4+ {[%emt 0:01:28]} 7. Bd2 {[%emt 0:00:05]} Bxd2+ {[%emt 0:00:24]} ({Better is} 7... a5 $11) 8. Qxd2 $14 {[%emt 0:00:09] White is slightly better.} ({Don't play} 8. N1xd2 Nf6 $11) 8... Nf6 {[%emt 0:05:02]} 9. Nc3 {[%emt 0:02:17][%cal Oe4e5]} O-O {[%emt 0:01:56]} 10. Be2 {[%emt 0:04:27]} Qe7 {[%emt 0:07:11]} 11. O-O {[%emt 0:03:29] [#]} d6 $146 {[%emt 0:00:32]} ({Predecessor:} 11... b6 12. Rad1 Rd8 13. Nb5 Bb7 14. Nd6 Ba6 15. f4 e5 16. Nf5 Qe6 17. Qc2 Nb4 {0-1 (69) Schwiddessen,J (1506)-Hinterreiter,M (1722) Playchess.com INT 2009}) 12. Rfd1 {[%emt 0:13:34]} Rd8 {[%emt 0:00:27]} 13. Rac1 {[%emt 0:06:42]} b6 {[%emt 0:01:54]} 14. Nd4 {[%emt 0:01:40]} Nxd4 {[%emt 0:03:23]} 15. Qxd4 {[%emt 0:00:51]} Bb7 {[%emt 0:01:13]} 16. Bf3 {[%emt 0:07:18]} Bc6 {[%emt 0:11:44]} 17. b4 {[%emt 0:09:08]} Rac8 {[%emt 0:03:08]} 18. a4 {[%emt 0:04:53][%cal Ba2a4,Ba4a5][%mdl 32]} h6 {[%emt 0:09:02]} 19. Ra1 {[%emt 0:08:19]} Ba8 {[%emt 0:05:49]} (19... e5 $11 {keeps the balance.} 20. Qe3 Bd7) 20. a5 $16 {[%emt 0:06:28]} Qc7 {[%emt 0:01:42]} 21. Nb5 {[%emt 0:07:17][%csl LRc7,LRd6]} Qxc4 {[%emt 0:10:18]} 22. Nxa7 {[%emt 0:01:25] White is more active.} Qxd4 {[%emt 0:00:23]} 23. Rxd4 {[%emt 0:00:08]} Rb8 {[%emt 0:00:29]} (23... Rc2 $142) 24. e5 $2 {[%emt 0:13:20]} ({Only move:} 24. a6 $16) 24... Nd5 $11 {[%emt 0:06:08]} 25. exd6 {[%emt 0:02:24] [#] Hoping for a6.} bxa5 {[%emt 0:02:39]} 26. Bxd5 {[%emt 0:00:57]} Bxd5 {[%emt 0:01:16]} 27. Rxa5 {[%emt 0:00:59]} Rxd6 {[%emt 0:00:57]} 28. h4 {[%emt 0:00:43]} Rd7 {[%emt 0:05:57]} (28... Rdb6 $5 {[%cal Rb6b4]} 29. b5 R8b7 $15) 29. b5 {[%emt 0:00:52]} Rbb7 {[%emt 0:00:46]} 30. Rda4 {[%emt 0:03:11]} ({Don't blunder} 30. Nc6 $2 Bxc6 31. Ra8+ Kh7 32. bxc6 Rb1+ 33. Kh2 Rxd4 $19) 30... Bb3 {[%emt 0:03:41]} ({Black should play} 30... Rdc7 $15) 31. Ra3 {[%emt 0:00:23]} Bc4 {[%emt 0:00:29]} 32. Rc3 {[%emt 0:01:29]} Rxa7 {[%emt 0:01:46]} (32... Be2 $5 {[%cal Rb7a7]} 33. Rc2 Bd3 $17) 33. Rxa7 {[%emt 0:00:07] The position is equal.} Rxa7 {[%emt 0:00:20]} 34. Rxc4 $15 {[%emt 0:00:04][%mdl 4096] Endgame KR-KR} Kf8 {[%emt 0:00:33]} 35. Rc8+ {[%emt 0:01:53]} Ke7 {[%emt 0:00:13]} 36. Rb8 {[%emt 0:00:41] Inhibits Rb7.} Kd6 {[%emt 0:03:07]} 37. b6 {[%emt 0:00:28]} Rd7 {[%emt 0:01:05]} 38. b7 {[%emt 0:00:36]} f6 {[%emt 0:02:36]} 39. f4 {[%emt 0:00:34]} Kc7 {[%emt 0:01:46]} 40. Re8 {[%emt 0:00:00]} Kxb7 {[%emt 0:00:00]} 41. Rxe6 {[%emt 0:00:22]} Kc7 {[%emt 0:00:18]} 42. Kf2 {[%emt 0:02:29]} Kd8 {[%emt 0:02:35]} 43. Kf3 {[%emt 0:05:41]} Rd3+ {[%emt 0:04:09]} 44. Kg4 {[%emt 0:05:03]} Kd7 {[%emt 0:00:29]} 45. f5 {[%emt 0:02:06]} Rd5 {[%emt 0:01:02]} 46. Ra6 {[%emt 0:01:21]} Ke7 {[%emt 0:00:52]} 47. Ra7+ {[%emt 0:00:07]} Kf8 {[%emt 0:00:02]} 48. g3 {[%emt 0:02:18]} Kg8 {[%emt 0:00:47] Weighted Error Value: White=0.11 (very precise) /Black=0.13 (very precise)} 1/2-1/2

[Event "Croatian 1A League 2022"]
[Site "Porec"]
[Date "2022.09.25"]
[Round "2.19"]
[White "Donchenko, Alexander"]
[Black "Vavulin, Maxim"]
[Result "1-0"]
[ECO "E15"]
[WhiteElo "2639"]
[BlackElo "2550"]
[Annotator "TA"]
[PlyCount "63"]
[EventDate "2022.09.24"]
[EventType "team-tourn"]
[EventCountry "CRO"]
[SourceTitle "playchess.com"]
[Source "ChessBase"]
[SourceQuality "1"]
[TimeControl "40/5400+30:1800+30"]

{[%evp 11,63,18,29,7,7,0,0,0,0,6,3,0,-4,0,-11,-17,0,-10,-4,-16,-12,-15,47,41,44,48,73,78,171,156,160,145,116,122,158,140,159,170,160,167,162,167,161,178,150,133,190,191,233,234,200,181,307,277]} 1. d4 {[%emt 0:00:04]} Nf6 {[%emt 0:00:12]} 2. c4 {[%emt 0:00:13]} e6 {[%emt 0:00:24]} 3. Nf3 {[%emt 0:00:23]} b6 {[%emt 0:00:24]} 4. g3 {[%emt 0:00:34]} Ba6 {[%emt 0:00:24]} 5. Qc2 {[%emt 0:04:48]} Bb7 {[%emt 0:03:50]} 6. Bg2 {[%emt 0:00:42]} c5 {[%emt 0:00:39]} 7. d5 {[%emt 0:00:20] E15: Queen's Indian: 4 g3 sidelines, 4 g3 Ba6 and 4 g3 Bb7 early deviations.} exd5 {[%emt 0:00:23]} 8. cxd5 {[%emt 0:00:08]} Nxd5 {[%emt 0:02:17]} 9. O-O {[%emt 0:00:15] The position is equal.} Be7 {[%emt 0:02:44] Against Ng5} 10. Rd1 {[%emt 0:00:35] Threatens to win with Qe4.} Nc6 {[%emt 0:00:50]} 11. Qf5 {[%emt 0:00:39]} ({Avoid the trap} 11. Rxd5 $2 Nb4 12. Qd1 Bxd5 $17) 11... Nf6 {[%emt 0:15:29]} 12. e4 {[%emt 0:00:34]} g6 {[%emt 0:08:23]} 13. Qf4 {[%emt 0:00:35]} O-O {[%emt 0:01:25]} 14. e5 {[%emt 0:00:17]} Nh5 {[%emt 0:04:05]} 15. Qc4 {[%emt 0:00:22]} Na5 {[%emt 0:20:14]} 16. Qd3 {[%emt 0:02:52] [#]} f6 $146 {[%emt 0:07:19]} (16... Ng7 $11) ({Predecessor:} 16... Qc7 17. Nc3 Rad8 18. Nb5 Qb8 19. Bh6 Ng7 20. Qc3 Bxf3 21. Bxf3 Nc6 22. Re1 f6 {½-½ (30) Costa Trillo,V (2377)-Marquez Abreu,C (2434) ICCF email 2020}) 17. Bh6 $14 {[%emt 0:24:27]} Rf7 {[%emt 0:01:31]} 18. Nc3 {[%emt 0:11:31]} Bf8 {[%emt 0:04:54]} 19. Be3 {[%emt 0:02:02][%cal Bh6e3,Be3c1,Bc1b2][%mdl 32]} ({But not} 19. e6 Re7 20. g4 (20. Bxf8 Qxf8 21. exd7 Rd8 $17) 20... Bxh6 $15) 19... d5 {[%emt 0:17:52]} (19... Rc8 $16) 20. Nxd5 $18 {[%emt 0:07:08]} Qxd5 {[%emt 0:02:38]} 21. Qxd5 {[%emt 0:00:15]} Bxd5 {[%emt 0:00:03]} 22. Rxd5 {[%emt 0:00:08]} Nc4 {[%emt 0:02:03]} 23. Bc1 {[%emt 0:01:28] Black must now prevent g4.} Re8 {[%emt 0:01:33][%cal Rc4e5]} 24. g4 {[%emt 0:02:09]} Ng7 {[%emt 0:00:16][%cal Rc4e5]} 25. exf6 {[%emt 0:00:26]} Rxf6 {[%emt 0:00:33]} 26. b3 {[%emt 0:00:27]} Nd6 {[%emt 0:01:12]} 27. Bb2 {[%emt 0:01:16] This bishop pair is nice.} Rfe6 {[%emt 0:00:31]} 28. Ne5 {[%emt 0:04:01] White is more active.} Nf7 {[%emt 0:01:44]} (28... h5 $16) 29. f4 {[%emt 0:08:17]} Bd6 {[%emt 0:00:27][%cal Rf7e5] [#]} 30. Nxf7 {[%emt 0:09:45]} Kxf7 {[%emt 0:00:01]} 31. Rad1 {[%emt 0:01:03]} Rd8 {[%emt 0:01:06]} (31... Re1+ $142 32. Bf1 (32. Rxe1 Rxe1+ 33. Kf2 Re6 $18) 32... Bxf4) 32. Bf1 {[%emt 0:00:52] Weighted Error Value: White=0.04 (flawless) /Black=0.24 (precise)} 1-0

[Event "Croatian 1A League 2022"]
[Site "Porec"]
[Date "2022.09.25"]
[Round "2.20"]
[White "Fercec, Nenad"]
[Black "Livaic, Leon"]
[Result "1/2-1/2"]
[ECO "B43"]
[WhiteElo "2403"]
[BlackElo "2565"]
[Annotator "TA"]
[PlyCount "119"]
[EventDate "2022.09.24"]
[EventType "team-tourn"]
[EventCountry "CRO"]
[SourceTitle "playchess.com"]
[Source "ChessBase"]
[SourceQuality "1"]
[TimeControl "40/5400+30:1800+30"]

{[%evp 15,119,26,31,0,0,0,-4,0,0,-12,0,0,0,0,0,0,0,-18,-25,-16,-19,-18,-12,-16,-18,-16,-12,-28,-35,-29,-42,-35,-43,-31,-31,-162,-162,-145,-10,-11,-4,-4,0,0,0,0,0,0,0,0,0,0,0,0,8,2,8,8,0,9,26,0,14,0,0,0,0,-28,-28,-28,-28,-28,-28,-28,-8,-8,-8,-8,-8,-8,0,-8,-8,-8,-8,-8,-8,-8,-8,-8,-8,-8,-8,-8,-8,-8,-8,-8,-8,-8,0,0,0,0,0,0]} 1. e4 {[%emt 0:00:15]} c5 {[%emt 0:00:06]} 2. Nf3 {[%emt 0:00:08]} e6 {[%emt 0:00:06]} 3. d4 {[%emt 0:00:06]} cxd4 {[%emt 0:00:04]} 4. Nxd4 {[%emt 0:00:07]} a6 {[%emt 0:00:07]} 5. Nc3 {[%emt 0:00:29]} b5 {[%emt 0:00:08]} 6. Bd3 {[%emt 0:00:43]} Bb7 {[%emt 0:00:06]} 7. O-O {[%emt 0:00:23]} Nc6 {[%emt 0:00:05]} 8. Nxc6 {[%emt 0:00:58]} Bxc6 {[%emt 0:00:04] [#]} 9. Qh5 $146 {[%emt 0:03:34] B43: Sicilian: Kan Variation: 5 Nc3.} ({Predecessor:} 9. Re1 Bd6 10. e5 Bc7 11. Be4 Ne7 12. Bxc6 Nxc6 13. Bf4 O-O 14. Qg4 Kh8 15. Qg3 Ba5 16. Rad1 Bxc3 17. Qxc3 {1-0 (46) Alekseenko,K (2698)-Dubov,D (2711) Chess.com INT 2022}) 9... Nf6 {[%emt 0:02:38]} 10. Qe2 {[%emt 0:02:59]} b4 {[%emt 0:15:43]} 11. Nb1 {[%emt 0:01:45][%cal Bc3b1,Bb1d2,Bd2b3,Bb3d4][%mdl 32]} d5 {[%emt 0:03:52][%cal Rd5e4]} 12. Nd2 {[%emt 0:07:09]} Be7 {[%emt 0:07:58]} 13. e5 {[%emt 0:00:42]} Nd7 {[%emt 0:00:06]} 14. Nb3 {[%emt 0:03:55]} Bb5 {[%emt 0:04:01]} 15. Bxb5 {[%emt 0:02:17]} axb5 {[%emt 0:00:04]} 16. Nd4 {[%emt 0:01:11]} Qb6 {[%emt 0:22:33] Inhibits Nc6.} 17. Nxb5 {[%emt 0:01:35]} O-O {[%emt 0:00:53][%cal Od7e5]} 18. Be3 {[%emt 0:00:49]} Bc5 {[%emt 0:05:25]} 19. Bxc5 {[%emt 0:00:49]} Qxc5 {[%emt 0:03:42]} 20. a4 {[%emt 0:06:48]} bxa3 $1 {[%emt 0:00:41]} 21. Rxa3 {[%emt 0:03:31]} Rab8 {[%emt 0:12:10]} 22. Rb3 {[%emt 0:00:14]} Qc4 {[%emt 0:04:52]} 23. Qxc4 {[%emt 0:01:07]} dxc4 {[%emt 0:00:03]} 24. Rb4 {[%emt 0:00:06]} Nxe5 {[%emt 0:00:14]} 25. f4 {[%emt 0:05:50] [#]} ({White should try} 25. Re1 $15 Rfd8 26. b3) 25... Ng4 $1 $19 {[%emt 0:01:24] And now ...Ne3 would win.} 26. Ra1 {[%emt 0:01:30]} Rfd8 {[%emt 0:07:07]} (26... Ne3 $17 27. Ra5 Rfd8) 27. c3 $11 {[%emt 0:05:36]} h5 {[%emt 0:03:23] ...Ne3 is the strong threat.} 28. Na3 $1 {[%emt 0:00:38]} Ne3 {[%emt 0:01:22]} 29. Rxb8 {[%emt 0:00:31]} Rxb8 {[%emt 0:00:03][%mdl 4096] Endgame KRN-KRN} 30. Re1 {[%emt 0:00:05]} Nd5 {[%emt 0:00:12]} 31. Nxc4 {[%emt 0:00:38]} Nxf4 {[%emt 0:00:03]} 32. g3 {[%emt 0:04:52]} Nd5 {[%emt 0:00:08]} 33. Kf2 {[%emt 0:00:29]} Kf8 {[%emt 0:00:28]} 34. Ra1 {[%emt 0:01:16]} g5 {[%emt 0:03:10]} 35. Ke2 {[%emt 0:00:23]} h4 {[%emt 0:01:56]} 36. Ra7 {[%emt 0:00:52]} hxg3 {[%emt 0:00:42]} 37. hxg3 {[%emt 0:00:09]} Kg7 {[%emt 0:01:10]} 38. Kf3 {[%emt 0:03:07]} Kf6 {[%emt 0:00:53]} 39. Nd6 {[%emt 0:08:01]} Rxb2 {[%emt 0:00:14]} 40. Rxf7+ {[%emt 0:00:00]} Kg6 {[%emt 0:00:00] [#] Hoping for ...g4+.} 41. Rf8 {[%emt 0:00:26]} Nxc3 {[%emt 0:03:03]} 42. Rg8+ {[%emt 0:12:51]} Kf6 {[%emt 0:00:22]} 43. Rc8 {[%emt 0:02:58]} Rb3 {[%emt 0:01:10] aiming for ...Nb5+.} 44. Kg4 {[%emt 0:00:28][%cal Oc8c3] Black must now prevent Rxc3!} Rb4+ {[%emt 0:04:25]} 45. Rc4 {[%emt 0:02:15] The position is equal.} Rxc4+ {[%emt 0:00:04]} 46. Nxc4 {[%emt 0:00:04] KN-KN} Nd5 {[%emt 0:01:18]} 47. Kh5 {[%emt 0:00:16]} Nc3 {[%emt 0:01:17]} 48. Kg4 {[%emt 0:12:09]} Ne4 {[%emt 0:00:04]} 49. Kf3 {[%emt 0:00:19]} Nc5 {[%emt 0:00:04]} 50. Kg4 {[%emt 0:03:54]} Nd3 {[%emt 0:00:08]} 51. Nd6 {[%emt 0:01:02]} Kg6 {[%emt 0:00:23]} 52. Kf3 {[%emt 0:00:28]} Ne5+ {[%emt 0:00:23]} 53. Ke4 {[%emt 0:00:14]} Ng4 {[%emt 0:01:12]} 54. Nb7 {[%emt 0:01:41]} Kf6 {[%emt 0:00:36]} 55. Nd6 {[%emt 0:00:46]} Nh6 {[%emt 0:00:44]} 56. Ne8+ {[%emt 0:00:57]} Ke7 {[%emt 0:00:14]} 57. Nc7 {[%emt 0:00:19]} Nf5 {[%emt 0:00:41]} 58. Ke5 {[%emt 0:00:28]} Nxg3 {[%emt 0:00:43]} 59. Nxe6 {[%emt 0:00:08]} Ne2 {[%emt 0:00:03]} 60. Nxg5 {[%emt 0:00:05] Weighted Error Value: White=0.07 (flawless) /Black=0.08 (flawless)} 1/2-1/2

[Event "Croatian 1A League 2022"]
[Site "Porec"]
[Date "2022.09.25"]
[Round "2.21"]
[White "Christiansen, Johan-Sebastian"]
[Black "Krsnik Cohar, Ivan Vihor"]
[Result "1/2-1/2"]
[ECO "C45"]
[WhiteElo "2583"]
[BlackElo "2296"]
[Annotator "TA"]
[PlyCount "143"]
[EventDate "2022.09.24"]
[EventType "team-tourn"]
[EventCountry "CRO"]
[SourceTitle "playchess.com"]
[Source "ChessBase"]
[SourceQuality "1"]
[TimeControl "40/5400+30:1800+30"]

{[%evp 17,143,-23,-20,-25,0,-33,-35,-39,-36,-39,-9,-41,-53,-47,-50,-35,-34,-50,-43,-52,-42,-64,-49,-60,-41,-52,-36,-39,-52,-51,-35,-35,-33,-93,-85,-115,-114,-114,-114,-136,-134,-168,-173,-240,-246,-233,-224,-217,-219,-273,-273,-273,-273,-273,-273,-273,-273,-258,-181,-181,-181,-384,-384,-383,-383,-343,-306,-251,-243,-1325,-1180,-12850,-29951,-29959,-29955,-29956,-12849,-9445,-4602,-12208,-12370,-524,-2991,-29961,-29954,-29952,-29945,-29964,-29963,-29965,-29965,-29960,-29960,-29967,-29955,-29969,-29969,-29969,-29971,-29970,-29971,-29971,-29971,-29968,-8,-8,0,-29966,0,-29958,-29947,-29957,-29956,-12836,-240,-1397,-8,-942,-8,-8,-8,-8,-8,-8,-8,-8,-8,-8]} 1. e4 {[%emt 0:05:24]} e5 {[%emt 0:00:06]} 2. Ne2 {[%emt 0:05:47]} Nc6 {[%emt 0:00:30]} 3. d4 {[%emt 0:01:02]} exd4 {[%emt 0:00:04]} 4. Nxd4 {[%emt 0:00:04]} Nf6 {[%emt 0:00:06]} 5. Nxc6 {[%emt 0:05:55]} bxc6 {[%emt 0:00:16]} 6. Nd2 {[%emt 0:04:01]} Bc5 {[%emt 0:00:13]} 7. Bd3 {[%emt 0:00:59]} O-O {[%emt 0:00:39]} 8. O-O {[%emt 0:00:11]} d5 {[%emt 0:03:41]} 9. h3 {[%emt 0:01:32]} Re8 {[%emt 0:01:09][%cal Rf6e4]} 10. Qf3 {[%emt 0:07:31] C45: Scotch Game.} Nd7 {[%emt 0:04:30][%cal Bf6d7,Bd7e5,Be5d3][%mdl 32]} 11. exd5 {[%emt 0:15:03]} Ne5 {[%emt 0:00:06][%csl LRd5,LRf3] [#]} 12. Qe4 $146 {[%emt 0:00:10] Black is slightly better.} ({Predecessor:} 12. Qg3 cxd5 13. Nb3 Nxd3 14. cxd3 Bb6 15. Bf4 Ba6 16. Rfe1 Re6 17. Rxe6 fxe6 18. Rc1 {1-0 (33) Paronen,P-Tusa,T Helsinki 1997}) 12... Nxd3 {[%emt 0:00:13]} (12... g6 {seems wilder.} 13. Qa4 cxd5 14. Bb5 Bd7) 13. Qxd3 {[%emt 0:00:02]} Qxd5 {[%emt 0:05:51]} (13... cxd5 {keeps more tension.} 14. Nb3 Bd6 15. Rd1 Qe7) 14. Qxd5 {[%emt 0:06:38]} (14. Nb3 {with more complications.} Bb6 15. Be3 Bf5 16. Qxd5 cxd5 17. c3) 14... cxd5 {[%emt 0:04:15]} 15. Nb3 {[%emt 0:01:08]} Bb6 {[%emt 0:00:06]} 16. a4 {[%emt 0:04:54] a5 is the strong threat.} a5 {[%emt 0:00:09]} 17. Be3 {[%emt 0:03:45]} Bxe3 {[%emt 0:04:08]} 18. fxe3 {[%emt 0:00:02]} Rxe3 {[%emt 0:00:09]} 19. Nc5 {[%emt 0:06:31]} Rb8 {[%emt 0:01:38]} 20. Rfe1 {[%emt 0:02:30]} Rxe1+ {[%emt 0:00:38]} 21. Rxe1 $15 {[%emt 0:00:02][%cal Re1e8][%mdl 4096] Endgame KRB-KRN} Kf8 {[%emt 0:00:17] Prevents Re8+.} 22. b3 {[%emt 0:01:28]} Rb6 {[%emt 0:00:18] White must now prevent ...Rc6.} 23. c3 {[%emt 0:04:28]} Rc6 {[%emt 0:26:41]} 24. b4 {[%emt 0:00:19]} Rb6 {[%emt 0:00:08]} 25. Rb1 {[%emt 0:20:39]} (25. Nd3 $15) 25... d4 $17 {[%emt 0:03:31]} 26. cxd4 {[%emt 0:00:23]} Rxb4 {[%emt 0:00:04]} 27. Rxb4 {[%emt 0:00:34]} axb4 {[%emt 0:00:01] KB-KN} 28. Kf2 {[%emt 0:00:16] [#]} Ke7 $1 {[%emt 0:00:14]} 29. Ke3 {[%emt 0:01:04]} Kd6 {[%emt 0:06:23]} 30. Kd3 {[%emt 0:01:36]} (30. Nd3 $142) 30... Kd5 $19 {[%emt 0:02:30]} 31. a5 {[%emt 0:01:37]} Bf5+ {[%emt 0:01:36]} 32. Ke3 {[%emt 0:00:00] Threatens to win with a6.} Kc6 {[%emt 0:00:30]} 33. g4 {[%emt 0:00:00]} Bc8 {[%emt 0:00:40] Strongly threatening ...Kb5.} 34. a6 {[%emt 0:00:26]} Kb6 {[%emt 0:00:07]} 35. Nd3 {[%emt 0:00:07]} b3 {[%emt 0:12:49]} ({Stronger than} 35... Kxa6 36. Nxb4+ Kb5 37. Nd5 $17) 36. Nc5 {[%emt 0:00:02]} h5 {[%emt 0:01:15]} ({Weaker is} 36... Be6 37. Kd2 $19) 37. gxh5 {[%emt 0:00:32]} Bxh3 {[%emt 0:00:13] aiming for ...b2.} 38. Nxb3 {[%emt 0:00:56]} Bg4 {[%emt 0:00:04]} 39. h6 $2 {[%emt 0:01:34]} (39. Nc5) 39... gxh6 {[%emt 0:00:01]} 40. Nc5 {[%emt 0:00:00]} Bc8 {[%emt 0:00:00]} 41. Kf4 {[%emt 0:00:27]} Bxa6 {[%emt 0:04:49]} 42. Nd7+ {[%emt 0:00:02]} Kc6 {[%emt 0:04:12]} 43. Ne5+ {[%emt 0:00:09]} (43. Nf6) 43... Kd5 {[%emt 0:00:01] Hoping for ...h5.} 44. Nxf7 {[%emt 0:00:06]} h5 {[%emt 0:00:05]} 45. Ng5 {[%emt 0:01:58]} Bc8 {[%emt 0:02:01]} 46. Ke3 {[%emt 0:00:42]} Bf5 {[%emt 0:02:57]} (46... h4 $142 47. Nf3 h3 48. Nh2 Bf5 49. Kf4 Be4 50. Ke3 Bh7 51. Nf3 Be4 52. Nh2 Bg6 53. Nf3 Bf5 54. Nh2 Be6 55. Nf3 Bg4 56. Nh2 Bf5 57. Kf4 Be4 58. Ke3) 47. Nf3 {[%emt 0:05:15]} Be4 {[%emt 0:01:48]} (47... Bc2 $142 48. Ng5 h4) 48. Ng5 {[%emt 0:01:10]} Bg2 {[%emt 0:01:28]} 49. Kf2 {[%emt 0:00:05] [#]} Bh1 $1 {[%emt 0:00:28]} 50. Ke3 {[%emt 0:00:02]} h4 {[%emt 0:00:51]} 51. Nh3 {[%emt 0:01:29]} Kc4 {[%emt 0:00:47]} 52. Nf4 {[%emt 0:01:49]} Bb7 {[%emt 0:00:25]} 53. Nh3 {[%emt 0:02:34]} Bg2 {[%emt 0:00:20]} 54. Nf2 {[%emt 0:01:29]} Kc3 {[%emt 0:00:53]} 55. Ng4 {[%emt 0:01:05]} Bd5 {[%emt 0:00:41]} 56. Nf6 {[%emt 0:01:28]} c6 {[%emt 0:00:58]} 57. Ng4 {[%emt 0:00:29]} h3 {[%emt 0:01:36]} 58. Nh2 {[%emt 0:00:07]} Kc2 {[%emt 0:00:11]} 59. Ng4 {[%emt 0:07:20]} Be6 {[%emt 0:00:32]} 60. Nh2 {[%emt 0:00:06]} Kd1 $2 {[%emt 0:00:09]} (60... Bf7 {mates} 61. Ke2 Bh5+ 62. Kf2 Kd3 63. Nf1 Kxd4 64. Kg3 Kd3 65. Kxh3 Bf3 66. Kh2 c5 67. Kg3 Be2 68. Kf2 Bxf1 69. Kxf1 Kd2 70. Kg2 c4 71. Kg3 c3 72. Kf4 c2 73. Ke5 c1=Q 74. Kd6 Ke3 75. Kd5 Qc7 76. Ke6 Ke4 77. Kf6 Qe5+ 78. Kg6 Qe7 79. Kh5 Kf5 80. Kh6 Qc7 81. Kh5 Qh7#) 61. Kf2 $1 $11 {[%emt 0:01:58]} Kc2 $2 {[%emt 0:00:44][%mdl 8192]} (61... Kd2 $11 62. Nf3+ Kc3) 62. Ke3 $1 {[%emt 0:02:54]} Bd5 {[%emt 0:00:06]} 63. Ng4 {[%emt 0:00:09]} Bg2 {[%emt 0:00:37]} 64. Ke2 {[%emt 0:01:04]} Be4 {[%emt 0:00:03]} 65. Ke3 {[%emt 0:02:03]} Bf5 {[%emt 0:00:08]} 66. Nh2 {[%emt 0:00:01]} Kd1 $2 {[%emt 0:00:50]} (66... Be6 $19 67. Ke2 Bd5) 67. Kf2 $2 {[%emt 0:00:01][%mdl 8192]} (67. Kf4 $11) 67... Be4 $2 {[%emt 0:02:15]} (67... Kd2 $19 {( -> ...Kd3)} 68. Nf3+ Kd3) 68. Kg3 {[%emt 0:01:08] The position is equal.} Ke2 {[%emt 0:00:49]} 69. Ng4 {[%emt 0:00:15]} Kd3 {[%emt 0:01:11]} 70. Ne5+ {[%emt 0:00:05]} Kxd4 {[%emt 0:00:04]} 71. Nxc6+ $1 {[%emt 0:00:05]} Bxc6 {[%emt 0:00:04]} 72. Kxh3 {[%emt 0:00:01] Weighted Error Value: White=0.41/Black=0.32} 1/2-1/2

[Event "Croatian 1A League 2022"]
[Site "Porec"]
[Date "2022.09.25"]
[Round "2.22"]
[White "Zufic, Miroslav"]
[Black "Martinovic, Sasa"]
[Result "0-1"]
[ECO "D36"]
[WhiteElo "2370"]
[BlackElo "2546"]
[Annotator "RC"]
[PlyCount "94"]
[EventDate "2022.09.24"]
[EventType "team-tourn"]
[EventCountry "CRO"]
[SourceTitle "playchess.com"]
[Source "ChessBase"]
[SourceQuality "1"]
[TimeControl "40/5400+30:1800+30"]

1. c4 {[%emt 0:00:06]} e6 {[%emt 0:00:04]} 2. Nc3 {[%emt 0:00:39]} d5 {[%emt 0:00:04]} 3. d4 {[%emt 0:00:18]} Nf6 {[%emt 0:00:05]} 4. cxd5 {[%emt 0:00:11]} exd5 {[%emt 0:00:04]} 5. Bg5 {[%emt 0:00:24]} c6 {[%emt 0:00:05]} 6. e3 {[%emt 0:00:24]} Be7 {[%emt 0:00:04]} 7. Bd3 {[%emt 0:00:28]} Nbd7 {[%emt 0:00:09]} 8. Nge2 {[%emt 0:02:03]} O-O {[%emt 0:00:14]} 9. Qc2 {[%emt 0:04:01]} Re8 {[%emt 0:00:08]} 10. Bf4 {[%emt 0:04:37]} Nf8 {[%emt 0:01:35]} 11. h3 {[%emt 0:00:33]} Ng6 {[%emt 0:09:42]} 12. g4 {[%emt 0:10:08]} b5 {[%emt 0:10:49]} 13. O-O-O {[%emt 0:11:23]} a5 {[%emt 0:01:43]} 14. Ng3 {[%emt 0:06:13]} b4 {[%emt 0:13:46]} 15. Nce2 {[%emt 0:09:48]} a4 {[%emt 0:16:13]} 16. Qd2 {[%emt 0:01:14]} Bf8 {[%emt 0:09:44]} 17. Bg5 {[%emt 0:07:52]} h6 {[%emt 0:01:12]} 18. Bf4 {[%emt 0:00:45]} Nh4 {[%emt 0:05:53]} 19. Kb1 {[%emt 0:10:28]} Be6 {[%emt 0:04:03]} 20. Rc1 {[%emt 0:12:16]} Qb6 {[%emt 0:03:58]} 21. Qd1 {[%emt 0:02:00]} c5 {[%emt 0:07:12]} 22. dxc5 {[%emt 0:00:13]} Bxc5 {[%emt 0:00:03]} 23. Be5 {[%emt 0:05:50]} Nd7 {[%emt 0:03:05]} 24. Bd4 {[%emt 0:00:07]} Nf3 {[%emt 0:00:47]} 25. Nf5 {[%emt 0:03:34]} Nxd4 {[%emt 0:03:03]} 26. Nexd4 {[%emt 0:00:29]} a3 {[%emt 0:00:58]} 27. b3 {[%emt 0:00:17]} Rac8 {[%emt 0:00:29]} 28. Rg1 {[%emt 0:01:42]} Ne5 {[%emt 0:03:45]} 29. f4 {[%emt 0:03:52]} Bxd4 {[%emt 0:03:17]} 30. Rxc8 {[%emt 0:00:25]} Bxc8 {[%emt 0:00:01]} 31. Nxd4 {[%emt 0:00:18]} Nxd3 {[%emt 0:02:18]} 32. Qxd3 {[%emt 0:00:06]} Ba6 {[%emt 0:00:08]} 33. Qd2 {[%emt 0:00:14]} Qg6+ {[%emt 0:00:40]} 34. Ka1 {[%emt 0:00:40]} Qd3 {[%emt 0:01:04]} 35. Qxb4 {[%emt 0:03:31]} Qxe3 {[%emt 0:00:05]} 36. Rd1 {[%emt 0:01:33]} Re4 {[%emt 0:01:06]} 37. Nc2 {[%emt 0:00:00]} Qe2 {[%emt 0:00:39]} 38. Qd2 {[%emt 0:00:00]} Qf3 {[%emt 0:00:35]} 39. Nxa3 {[%emt 0:00:37]} Re2 {[%emt 0:00:02]} 40. Qc1 {[%emt 0:00:35]} Qf2 {[%emt 0:00:00]} 41. Rxd5 {[%emt 0:12:24]} Rxa2+ {[%emt 0:01:50]} 42. Kb1 {[%emt 0:00:01]} Re2 {[%emt 0:00:26]} 43. Nc2 {[%emt 0:03:53]} Qf3 {[%emt 0:09:50]} 44. Rd8+ {[%emt 0:04:57]} Kh7 {[%emt 0:00:03]} 45. Kb2 {[%emt 0:02:06]} Qxh3 {[%emt 0:03:41]} 46. Qd1 {[%emt 0:05:41]} Qxg4 {[%emt 0:00:35]} 47. Qd6 {[%emt 0:03:09]} Qf5 {[%emt 0:03:04]} 0-1